Cogmind - Beta 12 *** ADVENTURER MODE // 2024.01.01 @ 18:22:29 Player: Occam Result: Self-destructed Performance ------------- Evolutions (4) 2000 Regions Visited (12) 2400 Robots Destroyed (123) 615 Value Destroyed (3956) 3956 Prototype IDs (35) 700 Alien Tech Used (0) 0 Bonus (1090) 1090 TOTAL SCORE: 10761 Bonus ------- High Alert Combat Kills 105 Follower Combat Kills 185 Entered Garrisons 200 Aligned with FarCom 300 Met Imprinter 300 Cogmind --------- Core Integrity 719/850 Matter 290/300 Energy 55/350 System Corruption 1% Temperature Cool (0) Movement Flying (95) Ox1 Location -6/Factory Parts ------- > --- POWER (1) -------- Enhanced Fission Core > --- PROPULSION (4) --- Cooled VTOL Module Cooled VTOL Module Cooled VTOL Module Nuclear Pulse Thruster > --- UTILITY (8) ------ Structural Scanner Modified TNC ECM Suite Improved Hacking Suite System Shield System Shield System Shield > --- WEAPON (2) ------- Coil Gun CR-A16's Pointy Stick > --- INVENTORY (5) ---- Nuclear Pulse Thruster Seismic Detector Encrypted Comm Array Improved Trap Extractor (0/6) Improved Grenade Launcher Peak State ------------ > --- POWER ------------ Light Fission Core > --- PROPULSION ------- Cooled VTOL Module Cooled VTOL Module Cooled VTOL Module Nuclear Pulse Thruster > --- UTILITY ---------- Structural Scanner Modified TNC ECM Suite Improved Hacking Suite System Shield System Shield System Shield Improved Trap Extractor > --- WEAPON ----------- Coil Gun CR-A16's Pointy Stick > --- INVENTORY -------- Nuclear Pulse Thruster Seismic Detector Encrypted Comm Array Improved Grenade Launcher [Rating: 61] Favorites ----------- Power Heavy Ion Engine Engine Heavy Ion Engine Power Core Micro Nuclear Core Propulsion Cooled VTOL Module Treads Armored Treads Wheel Wheel Flight Unit Cooled VTOL Module Utility System Shield Device Structural Scanner Storage High-capacity Storage Unit Processor Modified TNC Hackware System Shield Protection Improved Medium Armor Plating Weapon Cooled Particle Cannon Energy Gun Gatling Laser Energy Cannon Cooled Particle Cannon Ballistic Gun Shotgun Ballistic Cannon Advanced Assault Cannon Launcher Improved Grenade Launcher Impact Weapon Power Maul Slashing Weapon Chainsword Piercing Weapon CR-A16's Pointy Stick Special Melee Weapon Improved Datajack Build | -11 -10 -10 -10 -9 -8 -8 -7 -7 -7 -7 -6 -6 ------- Run | Jun Mat Min Exi Min Mat Gar Fac Low Low Zio Pro Fac Slots Evolved 8 | . . . . . 4 . 2 . . . . 2 Power . | . . . . . . . . . . . . . Propulsion 2 | . . . . . 1 . 1 . . . . . Utility 6 | . . . . . 3 . 1 . . . . 2 Weapon . | . . . . . . . . . . . . . Parts Attached 165 | 7 3 . . 2 42 10 76 4 2 3 4 12 Power 11 | 1 . . . 1 4 . 3 . . . 1 1 Engine 5 | 1 . . . . 3 . 1 . . . . . Core 6 | . . . . 1 1 . 2 . . . 1 1 Reactor . | . . . . . . . . . . . . . Propulsion 29 | 2 . . . . 13 1 9 1 . . . 3 Treads 9 | 1 . . . . 8 . . . . . . . Leg . | . . . . . . . . . . . . . Wheel 6 | 1 . . . . 4 1 . . . . . . Hover . | . . . . . . . . . . . . . Flight 14 | . . . . . 1 . 9 1 . . . 3 Utility 85 | 2 1 . . 1 13 2 53 1 1 2 2 7 Device 51 | 1 . . . 1 5 1 34 1 1 2 2 3 Storage 3 | 1 1 . . . 1 . . . . . . . Processor 3 | . . . . . . . 2 . . . . 1 Hackware 10 | . . . . . . . 8 . . . . 2 Protection 18 | . . . . . 7 1 9 . . . . 1 Artifact . | . . . . . . . . . . . . . Weapon 40 | 2 2 . . . 12 7 11 2 1 1 1 1 Energy Gun 5 | . . . . . 1 4 . . . . . . Energy Cannon 12 | . . . . . 9 3 . . . . . . Ballistic Gun 12 | 2 2 . . . 2 . 4 . . . 1 1 Ballistic Cannon 2 | . . . . . . . 1 . 1 . . . Launcher 1 | . . . . . . . . 1 . . . . Special Weapon . | . . . . . . . . . . . . . Impact Weapon 2 | . . . . . . . 1 1 . . . . Slashing Weapon 2 | . . . . . . . 2 . . . . . Piercing Weapon 1 | . . . . . . . . . . 1 . . Special Melee Weapon 3 | . . . . . . . 3 . . . . . Unidentified Prototypes 11 | . . . . 1 7 . 1 . . 1 . 1 Parts Lost 9 | . . . . . 1 2 3 . 1 . . 2 Power 1 | . . . . . . . . . . . . 1 Propulsion 3 | . . . . . 1 1 1 . . . . . Utility 4 | . . . . . . 1 1 . 1 . . 1 Weapon 1 | . . . . . . . 1 . . . . . Highest Loss Streak 3 | . . . . . 1 1 3 . 1 . . 1 To Critical Strikes . | . . . . . . . . . . . . . Average Slot Usage (%) 97 | . 100 100 100 99 99 94 97 84 91 92 99 93 Engine 5 | . 14 14 14 2 7 9 . . . . . . Core 3 | . . . . 11 1 . 6 7 7 7 7 5 Treads 10 | . 14 14 14 14 17 18 . . . . . . Wheel 6 | . 14 14 14 14 8 8 . . . . . . Flight 11 | . . . . . . . 28 23 30 30 30 25 Device 15 | . 14 14 14 13 20 12 6 14 19 23 23 24 Storage 6 | . 14 14 14 14 9 9 . . . . . . Hackware 10 | . . . . . . . 28 23 23 23 23 20 Protection 8 | . . . . . 15 17 7 7 2 . . . Energy Cannon 6 | . . . . . 17 11 . . . . . . Ballistic Gun 8 | . 28 28 28 28 . . 6 . . . 6 6 Slashing Weapon 1 | . . . . . . . 6 . . . . . Naked Turns . | . . . . . . . . . . . . . Heaviest Build 79 | 13 32 32 32 39 79 79 76 15 19 19 17 21 Greatest Support 42 | 20 10 10 10 10 42 16 26 19 25 19 19 28 Greatest Overweight (x) 7 | 1 3 3 3 3 7 7 4 . . . . . Average Overweight (x) 1 | . 2 3 3 3 6 5 . . . . . . Largest Inventory Capacity 20 | 8 15 15 15 15 20 20 20 5 5 5 5 5 Average Capacity 12 | 6 12 15 15 15 18 20 5 5 5 5 5 5 Most Carried 20 | 4 11 13 14 15 20 20 20 5 5 5 5 5 Average Carried 11 | 2 8 12 13 14 18 19 5 4 4 4 5 4 Final Capacity 20 | 8 15 15 15 15 20 20 5 5 5 5 5 5 Final Carried 20 | 4 11 13 14 15 20 20 5 5 5 5 5 5 Class Distribution -------------------- 60% | Mutant 34% | Hacker-Sprinter Dominant Class ---------------- Mutant | -10/Materials Mutant | -10/Mines Mutant | -10/Exiles Mutant | -9/Mines Mutant | -8/Materials Mutant | -8/Garrison Hacker-Sprinter | -7/Factory Hacker-Sprinter | -7/Lower Caves Hacker-Sprinter | -7/Lower Caves Hacker-Sprinter | -7/Zion Hacker-Sprinter | -6/Proximity Caves Hacker-Sprinter | -6/Factory Resources | -11 -10 -10 -10 -9 -8 -8 -7 -7 -7 -7 -6 -6 ----------- Run | Jun Mat Min Exi Min Mat Gar Fac Low Low Zio Pro Fac Matter Collected 2506 | 220 308 142 . 66 539 95 647 261 28 50 20 130 Remotely . | . . . . . . . . . . . . . Salvage Created 4460 | 18 356 201 . 94 1925 823 701 15 . . 107 220 Parts 268 | 5 42 10 . 12 115 37 36 1 . . 2 8 Haulers Intercepted 12 | . 1 . . . 6 . 3 . . . . 2 Recyclers Shooed . | . . . . . . . . . . . . . Parts Field Recycled . | . . . . . . . . . . . . . Retrieved Matter . | . . . . . . . . . . . . . Parts Self-Destructed 14 | . . . . . . . . 5 . . 9 . Prevented 3 | . . . . . . . . . . . 3 . Kills | -11 -10 -10 -10 -9 -8 -8 -7 -7 -7 -7 -6 -6 ------- Run | Jun Mat Min Exi Min Mat Gar Fac Low Low Zio Pro Fac Combat Hostiles Destroyed 84 | . 11 6 . 7 23 25 6 3 . . 2 1 Melee 9 | . . . . . . . 6 . . . 2 1 Guns 36 | . 11 6 . 7 3 9 . . . . . . Cannons 35 | . . . . . 20 15 . . . . . . AOE 3 | . . . . . . . . 3 . . . . Classes Destroyed 14 | 1 4 . . . 5 2 2 . . . . . Worker 2 | . . . . . 2 . . . . . . . Builder 1 | . . . . . . . 1 . . . . . Tunneler 1 | 1 . . . . . . . . . . . . Hauler 12 | . 1 . . . 6 . 3 . . . . 2 Recycler 5 | . . . . . 5 . . . . . . . Operator 4 | . . . . . 3 . 1 . . . . . Watcher 14 | . 3 . . . 5 . 6 . . . . . Swarmer 32 | . 6 . . 7 3 10 3 3 . . . . Cutter 2 | . . . . . . 2 . . . . . . Grunt 32 | . 5 6 . . 11 7 1 . . . 2 . Brawler 1 | . . . . . . 1 . . . . . . Sentry 12 | . . . . . 7 5 . . . . . . Hunter 2 | . . . . . 2 . . . . . . . Programmer 3 | . . . . . . . 2 . . . . 1 Best Kill Streak 8 | 1 6 2 . 4 4 8 4 3 . . 2 1 Combat Bots Only 8 | . 6 2 . 4 3 8 2 3 . . 2 1 Max Kills in Single Turn 3 | 1 1 1 . 2 2 3 1 1 . . 1 1 Gunslinging 1 | . . . . 1 . 1 . . . . . . Exploded 1 | . . . . . . . . 1 . . . . Melee 1 | . . . . . . . 1 . . . 1 1 Uniques/NPCs Destroyed . | . . . . . . . . . . . . . Combat | -11 -10 -10 -10 -9 -8 -8 -7 -7 -7 -7 -6 -6 -------- Run | Jun Mat Min Exi Min Mat Gar Fac Low Low Zio Pro Fac Damage Taken 4062 | . 137 137 . 115 946 1005 1079 111 83 . 32 417 Core 756 | . 35 34 . 5 77 240 199 . 23 . 12 131 Absorbed by Shields . | . . . . . . . . . . . . . Regen/Repaired (Parts) 367 | . . . . . . . 309 . . . . 58 Core Remaining (%) 69 | 100 . . . 70 . 42 . . . . 66 . Volleys Fired 224 | 1 21 14 . 7 92 80 6 3 . . . . Largest 2 | 2 2 2 . 2 2 2 1 1 . . . . Hottest 180 | 40 46 46 . 46 136 180 48 36 . . . . Shots Fired 411 | 2 42 28 . 14 181 135 6 3 . . . . Gun 132 | 2 42 28 . 14 20 26 . . . . . . Cannon 276 | . . . . . 161 109 6 . . . . . Launcher 3 | . . . . . . . . 3 . . . . Special . | . . . . . . . . . . . . . Kinetic 112 | 2 42 28 . 14 20 . 6 . . . . . Thermal 296 | . . . . . 161 135 . . . . . . Explosive 3 | . . . . . . . . 3 . . . . Electromagnetic . | . . . . . . . . . . . . . Robot Hit Streak 33 | 1 13 18 . 6 33 20 . 3 . . . . Robot Miss Streak 4 | 1 3 3 . 4 3 3 . . . . . . Penetration Max . | . . . . . . . . . . . . . Secondary Targets 6 | . . . . 3 2 1 . . . . . . Max Gunslinging Chain 1 | . . . . 1 1 1 . . . . . . Shots Hit Robots 346 | 1 31 27 . 10 134 81 45 3 . . 2 12 Core Hits 166 | 1 24 15 . 7 61 35 13 3 . . 2 5 Critical Kills 1 | . . . . . . 1 . . . . . . Critical Parts Destroyed . | . . . . . . . . . . . . . Critical Strikes 2 | . . . . . . 1 1 . . . . . Meltdown 1 | . . . . . . 1 . . . . . . Sever 1 | . . . . . . . 1 . . . . . Melee Attacks 169 | . . . . . . . 122 . 1 5 2 39 Impact 3 | . . . . . . . 1 . 1 1 . . Slashing 120 | . . . . . . . 120 . . . . . Piercing 45 | . . . . . . . . . . 4 2 39 Sneak Attacks 7 | . . . . . . . 6 . . . . 1 Combat Hostiles 1 | . . . . . . . 1 . . . . . Follow-up Attacks . | . . . . . . . . . . . . . Damage Inflicted 9731 | 16 454 470 . 174 3371 2277 2047 321 . . 78 523 Guns 1875 | 16 454 470 . 174 200 561 . . . . . . Cannons 4719 | . . . . . 3003 1716 . . . . . . Explosions 489 | . . . . . 168 . . 321 . . . . Melee 2648 | . . . . . . . 2047 . . . 78 523 Ramming . | . . . . . . . . . . . . . Kinetic 1314 | 16 454 470 . 174 200 . . . . . . . Thermal 5280 | . . . . . 3003 2277 . . . . . . Explosive 489 | . . . . . 168 . . 321 . . . . Electromagnetic . | . . . . . . . . . . . . . Impact . | . . . . . . . . . . . . . Slashing 2047 | . . . . . . . 2047 . . . . . Piercing 601 | . . . . . . . . . . . 78 523 Highest Corruption 7 | . . . . . . . 7 7 7 7 . 1 Average Corruption 3 | . . . . . . . 1 7 7 7 . 1 Corruption Purged . | . . . . . . . . . . . . . Corruption Blocked . | . . . . . . . . . . . . . Effects 20 | . . . . . . . 9 7 4 . . . Message Errors 6 | . . . . . . . 2 1 3 . . . Matter Fused 4 | . . . . . . . 2 2 . . . . Heat Flow Errors 2 | . . . . . . . . 2 . . . . Energy Discharges 4 | . . . . . . . 3 . 1 . . . Data Loss (minor) 4 | . . . . . . . 2 2 . . . . Overload Shots 6 | . . . . . . 6 . . . . . . Overflow Damage 513 | . . . . . 46 57 377 28 . . . 5 Projectiles 73 | . . . . . 16 57 . . . . . . Explosions 58 | . . . . . 30 . . 28 . . . . Melee 382 | . . . . . . . 377 . . . . 5 Knockbacks . | . . . . . . . . . . . . . Impact . | . . . . . . . . . . . . . Kinetic . | . . . . . . . . . . . . . Secondary . | . . . . . . . . . . . . . Self-Inflicted Damage 178 | . . . . . 178 . . . . . . . Shots 2 | . . . . . 2 . . . . . . . Rammed . | . . . . . . . . . . . . . Targets Rammed . | . . . . . . . . . . . . . Kicked . | . . . . . . . . . . . . . Crushed . | . . . . . . . . . . . . . Highest Temperature 428 | . 4 4 . . 428 220 185 252 52 . . 131 Average Temperature 69 | . 1 3 . . 233 74 50 115 23 . . 58 Received Heat Transfer 1292 | . 54 102 . . 414 540 75 27 41 . . 39 Effects 2 | . . . . . 2 . . . . . . . Shutdowns 1 | . . . . . 1 . . . . . . . Matter Decay 1 | . . . . . 1 . . . . . . . Siege Activations . | . . . . . . . . . . . . . Robots Corrupted . | . . . . . . . . . . . . . Combat Hostiles . | . . . . . . . . . . . . . Parts Fried . | . . . . . . . . . . . . . Impact Corruptions . | . . . . . . . . . . . . . Robots Melted 1 | . . . . . . 1 . . . . . . Combat Hostiles 1 | . . . . . . 1 . . . . . . Parts Melted 20 | . . . . . 8 12 . . . . . . Heat Transferred 7755 | . . . . . 4477 3278 . . . . . . Parts Sabotaged . | . . . . . . . . . . . . . Parts Stolen . | . . . . . . . . . . . . . Parts Stripped . | . . . . . . . . . . . . . Power Chain Reactions . | . . . . . . . . . . . . . Missiles Intercepted . | . . . . . . . . . . . . . Alert | -11 -10 -10 -10 -9 -8 -8 -7 -7 -7 -7 -6 -6 ------- Run | Jun Mat Min Exi Min Mat Gar Fac Low Low Zio Pro Fac Peak Influence 991 | 5 219 122 . 90 399 991 509 . . . . 96 Initial 450 | . 2 72 . . 22 10 450 . . . . 29 Average 174 | . 106 89 . 53 96 497 220 . . . . 43 Maximum Alert Level 3 | . 1 . . . 1 3 2 . . . . . Low Security (%) 68 | 100 67 100 . 100 82 18 50 . . . . 100 Level 1 19 | . 32 . . . 17 21 34 . . . . . Level 2 7 | . . . . . . 29 15 . . . . . Level 3 3 | . . . . . . 29 . . . . . . Level 4 . | . . . . . . . . . . . . . Level 5 . | . . . . . . . . . . . . . High Security . | . . . . . . . . . . . . . Max Security . | . . . . . . . . . . . . . Squads Dispatched 24 | . 1 . . . 3 . 13 . . . . 7 Investigation 11 | . 1 . . . 2 . 5 . . . . 3 Extermination 1 | . . . . . . . 1 . . . . . Reinforcement 9 | . . . . . 1 . 7 . . . . 1 Assault . | . . . . . . . . . . . . . Garrison 3 | . . . . . . . . . . . . 3 Intercept . | . . . . . . . . . . . . . Searches Triggered . | . . . . . . . . . . . . . Construction Impeded 1 | . . . . . . . 1 . . . . . Haulers Reinforced 1 | . . . . . . . 1 . . . . . Active Scanning Responses . | . . . . . . . . . . . . . Cargo Convoy Interrupts 2 | . . . . . . . 1 . . . . 1 Stealth | -11 -10 -10 -10 -9 -8 -8 -7 -7 -7 -7 -6 -6 --------- Run | Jun Mat Min Exi Min Mat Gar Fac Low Low Zio Pro Fac Distress Signals 6 | . 2 . . . . . 3 . . . . 1 Communications Jammed . | . . . . . . . . . . . . . Distress Signals . | . . . . . . . . . . . . . Times Spotted 211 | . 15 7 . 7 33 28 63 15 8 . 16 19 Peak Tracking Total 11 | . 6 2 . 4 3 6 8 11 11 . 7 10 Tactical Retreats 33 | . . 1 . . 1 3 20 3 1 . 2 2 Traps | -11 -10 -10 -10 -9 -8 -8 -7 -7 -7 -7 -6 -6 ------- Run | Jun Mat Min Exi Min Mat Gar Fac Low Low Zio Pro Fac Traps Triggered 9 | . 1 . . . 3 2 3 . . . . . Indirectly . | . . . . . . . . . . . . . Trap Hack Attempts 19 | . . . . . . . 19 . . . . . Triggered . | . . . . . . . . . . . . . Disarmed 1 | . . . . . . . 1 . . . . . Reprogrammed 9 | . . . . . . . 9 . . . . . Reused 4 | . . . . . . . 2 . . . . 2 Traps Extracted 9 | . . . . . . . 9 . . . . . Installed 9 | . . . . . . . 3 . . . . 6 Triggered 8 | . . . . . . . 3 1 . . 2 2 Most Traps Carried 6 | . . . . . . . 6 6 6 6 6 6 Machines | -11 -10 -10 -10 -9 -8 -8 -7 -7 -7 -7 -6 -6 ---------- Run | Jun Mat Min Exi Min Mat Gar Fac Low Low Zio Pro Fac Machines Disabled 12 | . . . . . 3 8 . . 1 . . . Max in Single Turn 2 | . . . . . 2 1 . . 1 . . . Garrison Access 6 | . . . . . . . 4 . . . . 2 Garrison Relay 4 | . . . . . . 4 . . . . . . Machines Repaired . | . . . . . . . . . . . . . Machines Sabotaged . | . . . . . . . . . . . . . Overloaded Fab Kills . | . . . . . . . . . . . . . Hacking | -11 -10 -10 -10 -9 -8 -8 -7 -7 -7 -7 -6 -6 --------- Run | Jun Mat Min Exi Min Mat Gar Fac Low Low Zio Pro Fac Machines Accessed 71 | . 8 . 2 1 15 2 26 . . . . 17 Terminals 42 | . 8 . . . 9 2 13 . . . . 10 Fabricators 7 | . . . . . . . 5 . . . . 2 Repair Stations 4 | . . . . . 1 . 1 . . . . 2 Recycling Units 5 | . . . . . 2 . 2 . . . . 1 Scanalyzers 3 | . . . . . 2 . 1 . . . . . Garrison Access 7 | . . . . . 1 . 4 . . . . 2 Total Hacks 244 | . 30 . 2 1 42 3 104 . . . . 62 Successful 146 | . 13 . 2 1 24 2 76 . . . . 28 Failed 98 | . 17 . . . 18 1 28 . . . . 34 Catastrophic 12 | . 2 . . . 2 . 3 . . . . 5 Database Lockouts . | . . . . . . . . . . . . . Manual 135 | . 24 . 1 . 26 . 55 . . . . 29 Terminals 148 | . 30 . . . 30 3 42 . . . . 43 Fabricators 32 | . . . . . . . 25 . . . . 7 Repair Stations 14 | . . . . . 1 . 8 . . . . 5 Recycling Units 16 | . . . . . 3 . 10 . . . . 3 Scanalyzers 20 | . . . . . 7 . 13 . . . . . Garrison Access 11 | . . . . . 1 . 6 . . . . 4 Terminal Hacks 55 | . 10 . 2 1 9 2 19 . . . . 12 Record 1 | . . . 1 . . . . . . . . . Part Schematic 3 | . . . . . 1 . 1 . . . . 1 Robot Analysis 5 | . 5 . . . . . . . . . . . Open Door 1 | . . . . 1 . . . . . . . . Level Access Points 1 | . . . . . 1 . . . . . . . Branch Access Points 3 | . . . . . 1 . 1 . . . . 1 Emergency Access Points 1 | . . . . . . 1 . . . . . . Terminal Index 3 | . 1 . . . 1 . 1 . . . . . Fabricator Index 2 | . . . . . . . 1 . . . . 1 Repair Station Index 2 | . . . . . . . 1 . . . . 1 Recycling Unit Index 1 | . . . . . 1 . . . . . . . Garrison Index 3 | . . . . . 1 . 1 . . . . 1 Alert Level 3 | . 1 . . . 1 . 1 . . . . . Locate Traps 9 | . 2 . . . 1 . 6 . . . . . Dispatch Records 1 | . . . . . . . . . . . . 1 Transport Status 2 | . . . . . . . . . . . . 2 Investigation Status 1 | . . . . . . . 1 . . . . . Recall Investigation 3 | . . . . . . . 1 . . . . 2 Recall Reinforcements 3 | . . . . . . . 2 . . . . 1 Hauler Manifests 5 | . 1 . . . 1 . 2 . . . . 1 Garrison Registry 1 | . . . . . . 1 . . . . . . EX-Prototype ID Bank 1 | . . . 1 . . . . . . . . . Fabricator Hacks 17 | . . . . . . . 14 . . . . 3 Network Status 3 | . . . . . . . 2 . . . . 1 Load Schematic 9 | . . . . . . . 8 . . . . 1 Build 5 | . . . . . . . 4 . . . . 1 Repair Station Hacks 10 | . . . . . . . 6 . . . . 4 Scan Component 5 | . . . . . . . 3 . . . . 2 Repair 5 | . . . . . . . 3 . . . . 2 Recycling Unit Hacks 6 | . . . . . 3 . 2 . . . . 1 Report Inventory 6 | . . . . . 3 . 2 . . . . 1 Scanalyzer 17 | . . . . . 7 . 10 . . . . . Insert Component 8 | . . . . . 3 . 5 . . . . . Analyze 9 | . . . . . 4 . 5 . . . . . Garrison Access Hacks 7 | . . . . . 1 . 4 . . . . 2 Unlock Access 1 | . . . . . 1 . . . . . . . Seal Access 6 | . . . . . . . 4 . . . . 2 Unauthorized Hacks 34 | . 3 . . . 4 . 21 . . . . 6 Terminals 16 | . 3 . . . 4 . 5 . . . . 4 Assimilate 3 | . . . . . . . 2 . . . . 1 Botnet 13 | . 3 . . . 4 . 3 . . . . 3 Fabricators 9 | . . . . . . . 8 . . . . 1 Prioritize 3 | . . . . . . . 2 . . . . 1 Liberate 1 | . . . . . . . 1 . . . . . Haulers 1 | . . . . . . . 1 . . . . . Recompile 4 | . . . . . . . 4 . . . . . Repair Stations . | . . . . . . . . . . . . . Recycling Units 8 | . . . . . . . 7 . . . . 1 Monitor 1 | . . . . . . . 1 . . . . . Reject 2 | . . . . . . . 2 . . . . . Recyclers 3 | . . . . . . . 2 . . . . 1 Mask 2 | . . . . . . . 2 . . . . . Scanalyzers 1 | . . . . . . . 1 . . . . . Researchers 1 | . . . . . . . 1 . . . . . Garrison Access . | . . . . . . . . . . . . . Data Cores Recovered 2 | . . . . . 2 . . . . . . . Used 1 | . . . . . 1 . . . . . . . Hacking Detections 47 | . 7 . . . 11 2 15 . . . . 12 Full Trace Events 4 | . . . . . 2 . . . . . . 2 Feedback Events 1 | . . . . . . . . . . . . 1 Hackware Fried 1 | . . . . . . . . . . . . 1 Feedback Blocked . | . . . . . . . . . . . . . Robot Schematics Acquired 4 | . . . . . . . . . . 4 . . Robots Built . | . . . . . . . . . . . . . Authchips . | . . . . . . . . . . . . . Time . | . . . . . . . . . . . . . Total Robot Build Rating . | . . . . . . . . . . . . . Part Schematics Acquired 23 | . . . . . 3 . 5 . . 14 . 1 Parts Built 5 | . . . . . . . 4 . . . . 1 Authchips 4 | . . . . . . . 4 . . . . . Time 314 | . . . . . . . 267 . . . . 47 Total Part Build Rating 21 | . . . . . . . 16 . . . . 5 Parts Repaired 5 | . . . . . . . 3 . . . . 2 Time 184 | . . . . . . . 79 . . . . 105 Parts Recycled . | . . . . . . . . . . . . . Recycled Matter . | . . . . . . . . . . . . . Retrieved Matter . | . . . . . . . . . . . . . Retrieved Components . | . . . . . . . . . . . . . Parts Scanalyzed 7 | . . . . . 3 . 4 . . . . . Part Schematics Acquired 6 | . . . . . 2 . 4 . . . . . Parts Damaged . | . . . . . . . . . . . . . Bothacking | -11 -10 -10 -10 -9 -8 -8 -7 -7 -7 -7 -6 -6 ------------ Run | Jun Mat Min Exi Min Mat Gar Fac Low Low Zio Pro Fac Used RIF Installer . | . . . . . . . . . . . . . Robots Hacked . | . . . . . . . . . . . . . Non-combat . | . . . . . . . . . . . . . Combat . | . . . . . . . . . . . . . Robot Hacks Applied . | . . . . . . . . . . . . . Relay Couplers Released 15 | . . . . . . 15 . . . . . . Machine Destruction 15 | . . . . . . 15 . . . . . . Fabnet Peak Effective % . | . . . . . . . . . . . . . Robots Rewired . | . . . . . . . . . . . . . Allies Hacked . | . . . . . . . . . . . . . Hacks Repelled . | . . . . . . . . . . . . . Allies | -11 -10 -10 -10 -9 -8 -8 -7 -7 -7 -7 -6 -6 -------- Run | Jun Mat Min Exi Min Mat Gar Fac Low Low Zio Pro Fac Total Allies 11 | . . . . . . . 3 . . 7 . 1 Largest Group 7 | . . . . . . . 2 . . 7 7 1 Highest-Rated Group 166 | . . . . . . . 64 . . 166 166 10 Highest-Rated Ally 32 | . . . . . . . 32 . . 31 31 10 Warlord Squad Rendezvous 2 | . . . . . . . . . . . . 2 Muscle 2 | . . . . . . . . . . . . 2 Total Orders 10 | . . . . . 5 . . . . . 4 1 STAY 1 | . . . . . . . . . . . . 1 ROAM 7 | . . . . . 5 . . . . . 2 . EXPLORE 2 | . . . . . . . . . . . 2 . Ally Attacks 52 | . . . . . 4 . 9 . . . 39 . Total Damage 1139 | . . . . . 25 . 401 . . . 713 . Kills 9 | . . . . . . . 4 . . . 5 . Allies Corrupted . | . . . . . . . . . . . . . Allies Melted 1 | . . . . . . . . . . . 1 . Intel | -11 -10 -10 -10 -9 -8 -8 -7 -7 -7 -7 -6 -6 ------- Run | Jun Mat Min Exi Min Mat Gar Fac Low Low Zio Pro Fac Robot Analysis Total 5 | . 5 . . . . . . . . . . . Derelict Logs Recovered 8 | . . 1 . 1 . . . 2 1 2 1 . Drone Launches 9 | . . . . . 6 . . . . . 3 . Drone Recoveries 6 | . . . . . 4 . . . . . 2 . Exploration | -11 -10 -10 -10 -9 -8 -8 -7 -7 -7 -7 -6 -6 ------------- Run | Jun Mat Min Exi Min Mat Gar Fac Low Low Zio Pro Fac Turns Passed 11662 | 66 771 713 413 595 3111 1382 2601 230 84 498 200 998 Spaces Moved 13230 | 46 583 525 329 442 1493 624 4594 734 245 1126 325 2164 Core 4 | 4 . . . . . . . . . . . . Treads 3 | 2 . . . . 1 . . . . . . . Legs . | . . . . . . . . . . . . . Wheels 4070 | 40 583 525 329 442 1492 624 35 . . . . . Hover . | . . . . . . . . . . . . . Flight 9153 | . . . . . . . 4559 734 245 1126 325 2164 Fastest Speed 17 | 50 95 125 125 125 125 160 17 26 17 26 26 17 Average Speed 64 | 90 112 125 125 125 175 176 26 28 25 26 26 26 Slowest Speed 237 | 160 125 125 125 125 237 185 160 29 26 26 26 27 Overloaded Moves 142 | . . . . . . . 109 . 9 . . 24 Propulsion Burnouts . | . . . . . . . . . . . . . Robots Hopped 23 | . . . . . . . 21 . . . . 2 Cave-ins Triggered 1 | . . . . . . . 1 . . . . . Exploration Rate (%) 70 | 4 97 95 69 86 94 85 73 84 38 81 56 51 Regions Visited 12 Branch Regions 7 Pre-discovered Areas 3 | . . . 1 . . . . 1 . 1 . . Known Exits Taken 4 | . . . 1 . 1 . 1 . . . 1 . Unknown Exits Taken 7 | 1 1 1 . 1 . . . 1 1 1 . . Scrap Searched 14 | . . 1 . 2 . . . 4 1 5 1 . Spaces Dug 104 | . . . . . 7 . 70 . . . . 27 Terrain Destroyed 175 | . . . . . 51 1 70 26 . . . 27 Melee 92 | . . . . . . . 65 . . . . 27 Projectile 26 | . . . . . 20 1 5 . . . . . AOE 57 | . . . . . 31 . . 26 . . . . Terrain Rammed . | . . . . . . . . . . . . . Walls Destroyed . | . . . . . . . . . . . . . Machines Disabled . | . . . . . . . . . . . . . Actions | -11 -10 -10 -10 -9 -8 -8 -7 -7 -7 -7 -6 -6 --------- Run | Jun Mat Min Exi Min Mat Gar Fac Low Low Zio Pro Fac Total 15678 | 65 661 554 331 471 1822 766 5742 747 263 1320 435 2501 Wait 1704 | 8 39 14 . 17 129 33 885 6 15 183 102 273 Move 13172 | 45 582 524 328 441 1492 621 4553 733 244 1125 324 2160 Hop 20 | . . . . . . . 18 . . . . 2 Pick Up 61 | 4 9 2 2 2 23 3 14 . . 1 . 1 Fast Attach 68 | 7 2 . . 1 24 3 14 2 1 2 3 9 Attach 33 | . . . . 1 8 2 19 1 1 . . 1 Detach 22 | . 2 . . . 8 . 8 1 1 . . 2 Swap 64 | . 1 . . . 10 5 43 1 . 1 1 2 Drop 96 | . 5 . 1 2 36 3 37 . . 3 3 6 Fire 224 | 1 21 14 . 7 92 80 6 3 . . . . Melee 169 | . . . . . . . 122 . 1 5 2 39 Ram . | . . . . . . . . . . . . . Kick . | . . . . . . . . . . . . . Crush . | . . . . . . . . . . . . . Escape Stasis 17 | . . . . . . 16 1 . . . . . Rewire . | . . . . . . . . . . . . . Trap 28 | . . . . . . . 22 . . . . 6 Miscellaneous . | . . . . . . . . . . . . . Route ------- -11/Junkyard -10/Materials (discovered 5 exits: [*Mat x3] / [*Min x2]) -10/Mines (discovered 3 exits: [*Mat x2] / *Exi) -10/Exiles (discovered 2 exits: *Min x2) -9/Mines -8/Materials (discovered 4 exits: *Fac x3 / Gar) -8/Garrison (discovered 3 exits: *Fac x3) -7/Factory (discovered 6 exits: *Fac x4 / *Low x2) -7/Lower Caves -7/Lower Caves -7/Zion -6/Proximity Caves -6/Factory (discovered 4 exits: [*Fac x2] / Low x2) History --------- Turn | Location | Event 13 | -11/Junkyard | Discovered new exit (range 15) 67 | -11/Junkyard | Entered Materials 217 | -10/Materials | Discovered new exit (range 4) 259 | -10/Materials | Discovered new exit (range 7) 309 | -10/Materials | Build established: Mutant 310 | -10/Materials | Discovered new exit (range 4) 712 | -10/Materials | Discovered new exit (range 5) 738 | -10/Materials | Discovered new exit (range 9) 838 | -10/Materials | Entered Mines 906 | -10/Mines | Found a hidden stash of uninstalled traps 946 | -10/Mines | Discovered new exit (range 8) 1233 | -10/Mines | Discovered new exit (range 7) 1546 | -10/Mines | Deemed a non-threat by the Exiles lab entrance 1546 | -10/Mines | Discovered new exit (range 5) 1551 | -10/Mines | Entered Exiles 1552 | -10/Exiles | Identified exit to Mines 1583 | -10/Exiles | Met 8R-AWN 1603 | -10/Exiles | Met EX-HEX 1654 | -10/Exiles | Met EX-BIN 1675 | -10/Exiles | Learned location of Zion (-7) 1676 | -10/Exiles | Met EX-DEC 1715 | -10/Exiles | Aligned with FarCom system 1716 | -10/Exiles | Given EX-Vault access code 1745 | -10/Exiles | Opened EX-Vault 1754 | -10/Exiles | Found Modified TNC 1780 | -10/Exiles | Warned to stay clear of 0b10 Research branches 1964 | -10/Exiles | Left Exiles lab with Modified TNC 1964 | -10/Exiles | Entered Mines 1986 | -9/Mines | Received a Rocket Launcher from a helpful Derelict 2159 | -9/Mines | Learned location of 1 exit from Materials 2532 | -9/Mines | Found the Drone Emporium 2532 | -9/Mines | Discovered new exit (range 14) 2540 | -9/Mines | Found Prototype Device 2540 | -9/Mines | Identified Splice Drone Bay 2559 | -9/Mines | Entered Materials 2559 | -8/Materials | Evolved 4 slots: Propulsion x1, Utility x3 2560 | -8/Materials | Identified exit to Factory 2739 | -8/Materials | Discovered exit to Factory (range 11) 3894 | -8/Materials | Identified exit to Garrison 5670 | -8/Materials | Entered Garrison 5816 | -8/Garrison | Triggered checkpoint 5986 | -8/Garrison | Destroyed 8 combat bots 6056 | -8/Garrison | Triggered checkpoint 6131 | -8/Garrison | Discovered exit to Factory (range 14) 6192 | -8/Garrison | Discovered exit to Factory (range 89) 6192 | -8/Garrison | Discovered exit to Factory (range 70) 6192 | -8/Garrison | Discovered exit to Factory (range 26) 6232 | -8/Garrison | Garrison Relay disabled 6333 | -8/Garrison | Attempted to access garrison exit controls, blocked by remote lockdown 6462 | -8/Garrison | Triggered checkpoint 6476 | -8/Garrison | Triggered checkpoint 6644 | -8/Garrison | Garrison Relay disabled 6646 | -8/Garrison | Garrison Relay disabled 6654 | -8/Garrison | Garrison Relay disabled 6661 | -8/Garrison | Core integrity fell below 50% 6786 | -8/Garrison | Attempted to access garrison exit controls, blocked by remote lockdown 7052 | -8/Garrison | Entered Factory 7052 | -7/Factory | Evolved 2 slots: Propulsion x1, Utility x1 7410 | -7/Factory | Discovered new exit (range 14) 7462 | -7/Factory | Discovered new exit (range 11) 7487 | -7/Factory | Build established: Hacker-Sprinter 7715 | -7/Factory | Fabricated Cld. VTOL Module? 7821 | -7/Factory | Discovered new exit (range 13) 7893 | -7/Factory | Discovered new exit (range 10) 7896 | -7/Factory | Discovered new exit (range 8) 8108 | -7/Factory | Discovered new exit (range 11) 8160 | -7/Factory | Identified exit to Lower Caves 8276 | -7/Factory | Fabricated Cld. VTOL Module? 8499 | -7/Factory | Fabricated Cld. VTOL Module (x1) 8757 | -7/Factory | Cargo convoy interrupted 8996 | -7/Factory | Repaired Lyr. Light Armor Plating 9035 | -7/Factory | Repaired Mic. Nuclear Core 9072 | -7/Factory | Repaired Cld. VTOL Module 9184 | -7/Factory | Fabricated Cld. VTOL Module (x1) 9543 | -7/Factory | Crushed by falling debris 9574 | -7/Factory | Lost 3 parts (1n1u1w) 9653 | -7/Factory | Entered Lower Caves 9663 | -7/Lower Caves | Met a Warlord Commander 9664 | -7/Lower Caves | Learned location of Warlord (-4) 9668 | -7/Lower Caves | Found Encrypted Comm Array 9775 | -7/Lower Caves | Learned Factory trap positions 9855 | -7/Lower Caves | Ambushed by wild Derelicts 9857 | -7/Lower Caves | Learned Factory security intel 9870 | -7/Lower Caves | Discovered new exit (range 7) 9883 | -7/Lower Caves | Entered another Lower Caves area 9903 | -7/Lower Caves | Learned Factory stockpile data 9905 | -7/Lower Caves | Spotted B-75 Beast 9912 | -7/Lower Caves | Attracted the attention of an 0b10 checkpoint 9916 | -7/Lower Caves | Attacked by a delusional Derelict stockpiling parts 9963 | -7/Lower Caves | Discovered new exit (range 4) 9967 | -7/Lower Caves | Entered Zion 9979 | -7/Zion | System corruption cleaned by Quarantine Array 9988 | -7/Zion | Given A8's code to call for help 9989 | -7/Zion | Discovered new exit (range 11) 10033 | -7/Zion | Learned Factory terminal intel 10067 | -7/Zion | Found CR-A16's Pointy Stick 10079 | -7/Zion | Rebuked by Imprinter 10094 | -7/Zion | Found Prototype Device 10094 | -7/Zion | Identified Phasing AFG 10111 | -7/Zion | Gained Derelict followers 10465 | -7/Zion | Entered Proximity Caves 10465 | -6/Proximity Caves | Accompanied by 7 allies 10640 | -6/Proximity Caves | Spotted B-75 Beast 10655 | -6/Proximity Caves | Identified exit to Factory 10665 | -6/Proximity Caves | Entered Factory 10665 | -6/Factory | Evolved 2 slots: Utility x2 10666 | -6/Factory | Loaded intel: 118 trap records 10669 | -6/Factory | Loaded intel: 26 terminal locations 10711 | -6/Factory | Joined by Warlord Muscle squad 10747 | -6/Factory | Discovered new exit (range 10) 10864 | -6/Factory | Garrison activated, responded to threat 10880 | -6/Factory | Hacking Suite fried by hacking feedback 10888 | -6/Factory | Joined by Warlord Muscle squad 10933 | -6/Factory | Repaired Cld. VTOL Module 11013 | -6/Factory | Discovered new exit (range 6) 11085 | -6/Factory | Identified exit to Lower Caves 11159 | -6/Factory | Fabricated Imp. Hacking Suite (x1) 11352 | -6/Factory | Repaired Cld. VTOL Module 11594 | -6/Factory | Cargo convoy interrupted 11663 | -6/Factory | Self-destructed Last Messages --------------- 11593_ X-67 Chaingunner unfolds itself. 11593_ X-62 Marksman unfolds itself. 11594_ ALERT: Cargo convoy interrupted, initiating access lockdown. 11609_ K-01 Serf cleans the Nuclear Reactor. 11630_ Destroyed Shock Rifle. 11633_ P-60 Hacker destroyed. 11640_ K-01 Serf collects debris. 11648_ M-28 Smith destroyed. 11649_ I-36 Angel destroyed. 11649_ Acquired 30 matter. 11652_ Penetrated by Slug. 11652_ Assembly Bed disabled. 11656_ Lgt. Fission Core destroyed. 11658_ A-27 Freighter destroyed. 11660_ Knocked back. 11661_ Slug penetrates Assembly Bed. 11662_ Acquired Prototype Power Core. 11662_ Identified Enh. Fission Core. Map ----- +----------------------------------------------------+ | # ### """" """ """ " | | # """ ### """" """ """ " | | # """ ### """" """ """ " | | # """ !### """" | | # ### """ """ " | | ########### """" """ """ " | | ########### """" """ """ " | | # #### """" | | # #### ^"""" | | # #### """" ############ | | # #### """" # =[ | | # # # """ =[ | | # " x"""" # "Y" [ | | # " ^"""" *#!" " | | # # x! """" =/% | | # # !%* """" [#! """ """ | | # ## % ^" "" #! """ """ | | # ## H """ # """ """ | | # ##% x # | | # +[ """" # | | # #=! """" # ! | | ##+####*]*< """" # | | # [*!!!*! """" ############ | | # """""!%%]= """" # | | # """""!;] """"%% # """ " " " | | # """ =@# % % # "T" " " " | | # [# """" + " " " | | # || ; """" # " " " | | # |! # """" # " " " | | # |! # """" # " " " | | # # """" # " " " | | # ! # """" # " " " | | # # # " " " | | # " " # """" # | | # " " # """" # | | # ""G"" # """" ########"### | | # Y # """" ######### | | ##### ### """" ^^##??### | | ######### """" ##???## | | # # * ##???## | | ? " " " # """" ##???## | | # " " " # """" ##???## | | # " " " # ^ """" ##???## | | # " " " # """" ##???## | | # " " " + """" ##???## | | # " " " # """" ##???## | | # " " " ### ####### | | # " " " ### ########## | | # " " " ### | | # ### | +----------------------------------------------------+ Best States ------------- Heat Dissipation 75 Energy Generation 18 Energy Capacity 280 Matter Stores 300 Matter Capacity 300 Sight Range 16 Terrain Scan Density 10 ECM Strength 2 Additional Mass Support 9 Corruption Block 8 Armor Coverage 450 Resistance: KI 20 Resistance: TH 20 Resistance: EX 20 Resistance: EM 20 Resistance: I 20 Resistance: S 20 Resistance: P 20 Propulsion Shielding 66 Evasion (%) 65 Recoil Reduction 2 Offensive Hacking 30 Defensive Hacking 30 Authchip Count 1 Trap Extractor Capacity 6 Item Schematics ----------------- Hacking Suite | -8/Materials | Hacked Imp. VTOL Module | -8/Materials | Scanalyzed Imp. Propulsion Shielding | -8/Materials | Scanalyzed Cld. VTOL Module | -7/Factory | Hacked Imp. Trap Extractor | -7/Factory | Scanalyzed ECM Suite | -7/Factory | Scanalyzed Imp. Grenade Launcher | -7/Factory | Scanalyzed Adv. Assault Cannon | -7/Factory | Scanalyzed Imp. Titanium Leg | -7/Zion | Archive Imp. Heavy Armor Plating | -7/Zion | Archive Coil Gun | -7/Zion | Archive Mak. Spear | -7/Zion | Archive Flexi-carbon Leg | -7/Zion | Archive Force Booster | -7/Zion | Archive Imp. Coolant Injector | -7/Zion | Archive Enh. Gauss Cannon | -7/Zion | Archive Imp. Field Recycling Unit | -7/Zion | Archive Mak. Sword | -7/Zion | Archive Focal Shield | -7/Zion | Archive Ripper | -7/Zion | Archive EM Disruption Field | -7/Zion | Archive Gatling Laser | -7/Zion | Archive Imp. Hacking Suite | -6/Factory | Hacked Robot Schematics ------------------ S-27 Virus | -7/Zion | Archive A-02 Transporter | -7/Zion | Archive M-28 Smith | -7/Zion | Archive Y-72 Warden | -7/Zion | Archive Fabricated ------------ Cld. VTOL Module | x1 | -7/Factory | Authchip Cld. VTOL Module | x1 | -7/Factory | Authchip Cld. VTOL Module | x1 | -7/Factory | Authchip Cld. VTOL Module | x1 | -7/Factory | Authchip Imp. Hacking Suite | x1 | -6/Factory Alien Tech Used ----------------- None Achievements -------------- Error 47 Challenges ------------ None Game ------ Seed CryofiberDataStick Manual? 0 Play Time 04:01:47 Cumulative 157.4 hours Start 2023.12.29 @ 20:49:31 End 2024.01.01 @ 18:22:29 Sessions 9 Manual Loads 0 Difficulty Adventurer Special Mode None Game No. 124 Rogue 0 Adventurer 124 Explorer 0 Win Type - Total 2 Types 2/0/0/0/0/0/0/0/0 Lore% 60 Gallery% 60 Achievement% 53 Wizard Run 0 Options --------- ASCII 0 Keyboard 0 Movement Mouse Keybinds 0 Fullscreen 2 Font 20/SmallcapsGlow Map View 66x50 Tactical HUD 1 Map Filters NONE Filters NONE Steam X RUN: e34b375f-b89c-4d56-a84e-7f4fc2a9079a